[Event "Titled Tuesday Blitz April 4 Early 2023"]
[White "Pakleza, Zbigniew"]
[Black "The_Sherman_Variation"]
[WhiteFideId "1119290"]
[WhiteElo "2410"]
[BlackElo "2553"]
[Result "1-0"]
[Round "02"]
[TimeControl "180+2"]
[Date "2023.04.04"]
[WhiteClock "0:00:07"]
[BlackClock "0:00:18"]

1. d4 {[%clk 0:02:53]}  Nf6 {[%clk 0:02:57]} 2. Nf3 {[%clk 0:02:53]}  e6 {[%clk 0:02:56]} 3. Bf4 {[%clk 0:02:53]}  d5 {[%clk 0:02:56]} 4. e3 {[%clk 0:02:53]}  c5 {[%clk 0:02:56]} 5. c3 {[%clk 0:02:53]}  Nc6 {[%clk 0:02:55]} 6. Nbd2 {[%clk 0:02:53]}  Nh5 {[%clk 0:02:55]} 7. Be5 {[%clk 0:02:53]}  f6 {[%clk 0:02:48]} 8. Bg3 {[%clk 0:02:53]}  Nxg3 {[%clk 0:02:48]} 9. hxg3 {[%clk 0:02:54]}  Bd6 {[%clk 0:02:47]} 10. Bd3 {[%clk 0:02:54]}  f5 {[%clk 0:02:45]} 11. Ng1 {[%clk 0:02:08]}  Qf6 {[%clk 0:02:35]} 12. f4 {[%clk 0:01:57]}  cxd4 {[%clk 0:02:27]} 13. cxd4 {[%clk 0:01:57]}  Bd7 {[%clk 0:02:25]} 14. Rc1 {[%clk 0:01:35]}  O-O-O {[%clk 0:02:09]} 15. Ngf3 {[%clk 0:01:25]}  Kb8 {[%clk 0:02:05]} 16. a3 {[%clk 0:01:23]}  h6 {[%clk 0:02:03]} 17. b4 {[%clk 0:01:17]}  g5 {[%clk 0:01:51]} 18. Kf2 {[%clk 0:01:17]}  Rdg8 {[%clk 0:01:43]} 19. Nb3 {[%clk 0:01:10]}  Qg6 {[%clk 0:01:37]} 20. Bf1 {[%clk 0:00:32]}  gxf4 {[%clk 0:01:33]} 21. gxf4 {[%clk 0:00:33]}  Qg3+ {[%clk 0:01:32]} 22. Ke2 {[%clk 0:00:33]}  Nxb4 {[%clk 0:01:26]} 23. axb4 {[%clk 0:00:26]}  Bb5+ {[%clk 0:01:26]} 24. Kd2 {[%clk 0:00:26]}  Qf2+ {[%clk 0:01:27]} 25. Kc3 {[%clk 0:00:19]}  Rc8+ {[%clk 0:01:16]} 26. Nc5 {[%clk 0:00:19]}  Qxe3+ {[%clk 0:01:15]} 27. Kb2 {[%clk 0:00:16]}  Bxf1 {[%clk 0:00:57]} 28. Rxf1 {[%clk 0:00:17]}  b6 {[%clk 0:00:50]} 29. Re1 {[%clk 0:00:16]}  Qxf4 {[%clk 0:00:42]} 30. Nxe6 {[%clk 0:00:17]}  Qg4 {[%clk 0:00:26]} 31. Qd2 {[%clk 0:00:15]}  Rhg8 {[%clk 0:00:24]} 32. Rxc8+ {[%clk 0:00:15]}  Rxc8 {[%clk 0:00:23]} 33. Ne5 {[%clk 0:00:13]}  Bxe5 {[%clk 0:00:20]} 34. Rxe5 {[%clk 0:00:08]}  h5 {[%clk 0:00:20]} 35. Nf4 {[%clk 0:00:07]}  h4 {[%clk 0:00:20]} 36. Rxd5 {[%clk 0:00:07]}  Qg3 {[%clk 0:00:20]} 37. Re5 {[%clk 0:00:05]}  Rd8 {[%clk 0:00:20]} 38. d5 {[%clk 0:00:05]}  Qg7 {[%clk 0:00:16]} 39. Qd4 {[%clk 0:00:06]}  Qd7 {[%clk 0:00:17]} 40. Ne6 {[%clk 0:00:05]}  Rc8 {[%clk 0:00:17]} 41. Re3 {[%clk 0:00:05]}  Qa4 {[%clk 0:00:18]} 42. Rb3 {[%clk 0:00:05]}  Rg8 {[%clk 0:00:18]} 43. Qf4+ {[%clk 0:00:05]}  Kb7 {[%clk 0:00:18]} 44. Qc7+ {[%clk 0:00:05]}  Ka6 {[%clk 0:00:18]} 45. Qc2 {[%clk 0:00:06]}  Qb5 {[%clk 0:00:18]} 46. Nc7+ {[%clk 0:00:06]}  Kb7 {[%clk 0:00:18]} 47. Nxb5 {[%clk 0:00:07]}  a6 {[%clk 0:00:18]} 48. Nd6+ {[%clk 0:00:07]} 1-0


[Site "https://www.chess.com"]

[Event "Titled Tuesday Blitz April 4 Early 2023"]
[White "Orlov, Georgi"]
[Black "Albornoz Cabrera, Carlos Daniel"]
[WhiteFideId "2011271"]
[BlackFideId "3518736"]
[WhiteElo "2547"]
[BlackElo "2516"]
[Result "1-0"]
[Round "02"]
[TimeControl "180+2"]
[Date "2023.04.04"]
[WhiteClock "0:00:38"]
[BlackClock "0:00:05"]

1. d4 {[%clk 0:03:00]}  Nf6 {[%clk 0:02:58]} 2. Nf3 {[%clk 0:03:00]}  g6 {[%clk 0:02:58]} 3. c4 {[%clk 0:02:59]}  Bg7 {[%clk 0:02:59]} 4. Nc3 {[%clk 0:02:59]}  d5 {[%clk 0:02:59]} 5. Qb3 {[%clk 0:02:58]}  dxc4 {[%clk 0:02:57]} 6. Qxc4 {[%clk 0:02:58]}  O-O {[%clk 0:02:54]} 7. e4 {[%clk 0:02:58]}  Nc6 {[%clk 0:02:32]} 8. Be3 {[%clk 0:02:49]}  Ng4 {[%clk 0:02:29]} 9. d5 {[%clk 0:02:41]}  Nxe3 {[%clk 0:02:28]} 10. fxe3 {[%clk 0:02:41]}  Ne5 {[%clk 0:02:29]} 11. Nxe5 {[%clk 0:02:39]}  Bxe5 {[%clk 0:02:29]} 12. O-O-O {[%clk 0:02:38]}  Qd6 {[%clk 0:02:23]} 13. Nb5 {[%clk 0:02:30]}  Qb6 {[%clk 0:02:22]} 14. Nd4 {[%clk 0:02:29]}  c6 {[%clk 0:02:19]} 15. Qb3 {[%clk 0:02:03]}  Qa5 {[%clk 0:01:59]} 16. Be2 {[%clk 0:01:58]}  cxd5 {[%clk 0:01:54]} 17. exd5 {[%clk 0:01:53]}  Bd7 {[%clk 0:01:54]} 18. Kb1 {[%clk 0:01:51]}  Rac8 {[%clk 0:01:49]} 19. Bb5 {[%clk 0:01:37]}  Bg4 {[%clk 0:01:42]} 20. Nf3 {[%clk 0:01:36]}  Bg7 {[%clk 0:01:33]} 21. e4 {[%clk 0:01:29]}  Rc5 {[%clk 0:01:30]} 22. Bd3 {[%clk 0:01:25]}  Rfc8 {[%clk 0:01:26]} 23. h3 {[%clk 0:01:14]}  Bd7 {[%clk 0:01:20]} 24. Rc1 {[%clk 0:01:07]}  b6 {[%clk 0:01:01]} 25. a3 {[%clk 0:00:59]}  Ba4 {[%clk 0:00:52]} 26. Qb4 {[%clk 0:00:57]}  Rxc1+ {[%clk 0:00:50]} 27. Rxc1 {[%clk 0:00:56]}  Rxc1+ {[%clk 0:00:51]} 28. Kxc1 {[%clk 0:00:56]}  Qxb4 {[%clk 0:00:52]} 29. axb4 {[%clk 0:00:56]}  Kf8 {[%clk 0:00:50]} 30. b5 {[%clk 0:00:53]}  h6 {[%clk 0:00:40]} 31. Bc4 {[%clk 0:00:48]}  f5 {[%clk 0:00:09]} 32. exf5 {[%clk 0:00:41]}  a6 {[%clk 0:00:09]} 33. bxa6 {[%clk 0:00:39]}  b5 {[%clk 0:00:05]} 34. a7 {[%clk 0:00:38]} 1-0


[Site "https://www.chess.com"]

[Event "Titled Tuesday Blitz April 4 Early 2023"]
[White "Sharapov, Evgeny"]
[Black "Milikow, Yoav"]
[WhiteFideId "14103133"]
[BlackFideId "2822237"]
[WhiteElo "2367"]
[BlackElo "2410"]
[Result "0-1"]
[Round "02"]
[TimeControl "180+2"]
[Date "2023.04.04"]
[WhiteClock "0:00:01"]
[BlackClock "0:00:06"]

1. e4 {[%clk 0:02:59]}  e5 {[%clk 0:02:57]} 2. Nf3 {[%clk 0:02:58]}  Nc6 {[%clk 0:02:57]} 3. Bb5 {[%clk 0:02:58]}  Nf6 {[%clk 0:02:57]} 4. d3 {[%clk 0:02:58]}  Bc5 {[%clk 0:02:57]} 5. O-O {[%clk 0:02:58]}  Nd4 {[%clk 0:02:54]} 6. Nxd4 {[%clk 0:02:57]}  Bxd4 {[%clk 0:02:55]} 7. c3 {[%clk 0:02:57]}  Bb6 {[%clk 0:02:55]} 8. d4 {[%clk 0:02:55]}  O-O {[%clk 0:02:52]} 9. dxe5 {[%clk 0:02:50]}  Nxe4 {[%clk 0:02:51]} 10. Bd3 {[%clk 0:02:42]}  d5 {[%clk 0:02:42]} 11. exd6 {[%clk 0:02:41]}  Nxd6 {[%clk 0:02:37]} 12. Bf4 {[%clk 0:02:39]}  Qf6 {[%clk 0:02:35]} 13. Bg3 {[%clk 0:02:33]}  Nf5 {[%clk 0:02:28]} 14. Qc2 {[%clk 0:02:26]}  Rd8 {[%clk 0:02:22]} 15. Nd2 {[%clk 0:02:20]}  Nxg3 {[%clk 0:01:56]} 16. hxg3 {[%clk 0:02:18]}  Qh6 {[%clk 0:01:44]} 17. Nc4 {[%clk 0:02:13]}  Bc5 {[%clk 0:01:41]} 18. b4 {[%clk 0:02:10]}  Bf8 {[%clk 0:01:39]} 19. Ne3 {[%clk 0:02:06]}  a5 {[%clk 0:01:34]} 20. a3 {[%clk 0:02:02]}  Be6 {[%clk 0:01:24]} 21. Bf5 {[%clk 0:01:54]}  axb4 {[%clk 0:01:14]} 22. axb4 {[%clk 0:01:51]}  c6 {[%clk 0:01:04]} 23. Rxa8 {[%clk 0:01:46]}  Rxa8 {[%clk 0:01:04]} 24. Rd1 {[%clk 0:01:43]}  Ra2 {[%clk 0:01:02]} 25. Qe4 {[%clk 0:01:34]}  Qf6 {[%clk 0:00:51]} 26. Bxh7+ {[%clk 0:01:25]}  Kh8 {[%clk 0:00:51]} 27. Bf5 {[%clk 0:01:23]}  Bb3 {[%clk 0:00:37]} 28. Rb1 {[%clk 0:01:08]}  Ba4 {[%clk 0:00:24]} 29. Qc4 {[%clk 0:00:41]}  Rd2 {[%clk 0:00:20]} 30. Qf4 {[%clk 0:00:34]}  Rd8 {[%clk 0:00:13]} 31. Ng4 {[%clk 0:00:28]}  Qe7 {[%clk 0:00:12]} 32. Kh2 {[%clk 0:00:25]}  g6 {[%clk 0:00:12]} 33. Rh1 {[%clk 0:00:22]}  Kg8 {[%clk 0:00:11]} 34. Bb1 {[%clk 0:00:18]}  Bg7 {[%clk 0:00:11]} 35. Nh6+ {[%clk 0:00:17]}  Kf8 {[%clk 0:00:11]} 36. Ng4 {[%clk 0:00:16]}  Rd5 {[%clk 0:00:11]} 37. Ne3 {[%clk 0:00:14]}  Rh5+ {[%clk 0:00:10]} 38. Kg1 {[%clk 0:00:14]}  Be5 {[%clk 0:00:10]} 39. Qg4 {[%clk 0:00:13]}  Rxh1+ {[%clk 0:00:11]} 40. Kxh1 {[%clk 0:00:13]}  Bxc3 {[%clk 0:00:12]} 41. Qc8+ {[%clk 0:00:12]}  Kg7 {[%clk 0:00:11]} 42. Qg4 {[%clk 0:00:09]}  Qf6 {[%clk 0:00:10]} 43. Nf5+ {[%clk 0:00:08]}  Kf8 {[%clk 0:00:11]} 44. Ne3 {[%clk 0:00:07]}  Bb3 {[%clk 0:00:11]} 45. Qe4 {[%clk 0:00:06]}  Be6 {[%clk 0:00:10]} 46. Bd3 {[%clk 0:00:05]}  Qxf2 {[%clk 0:00:10]} 47. Kh2 {[%clk 0:00:05]}  Be1 {[%clk 0:00:08]} 48. Nf1 {[%clk 0:00:03]}  Bc3 {[%clk 0:00:06]} 49. b5 {[%clk 0:00:02]}  cxb5 {[%clk 0:00:05]} 50. Qxb7 {[%clk 0:00:01]}  b4 {[%clk 0:00:06]} 0-1


[Site "https://www.chess.com"]

[Event "Titled Tuesday Blitz April 4 Early 2023"]
[White "Budrewicz, Krzysztof"]
[Black "Boyer, Mahel"]
[WhiteFideId "1127950"]
[BlackFideId "45102422"]
[WhiteElo "2230"]
[BlackElo "2439"]
[Result "0-1"]
[Round "02"]
[TimeControl "180+2"]
[Date "2023.04.04"]
[WhiteClock "0:01:17"]
[BlackClock "0:00:51"]

1. d4 {[%clk 0:03:00]}  e6 {[%clk 0:02:57]} 2. c4 {[%clk 0:03:00]}  d5 {[%clk 0:02:57]} 3. Nf3 {[%clk 0:03:00]}  Nf6 {[%clk 0:02:56]} 4. Nc3 {[%clk 0:03:01]}  Be7 {[%clk 0:02:57]} 5. Bg5 {[%clk 0:03:01]}  Nbd7 {[%clk 0:02:57]} 6. e3 {[%clk 0:03:01]}  O-O {[%clk 0:02:57]} 7. Qc2 {[%clk 0:03:01]}  dxc4 {[%clk 0:02:57]} 8. Bxc4 {[%clk 0:03:00]}  a6 {[%clk 0:02:54]} 9. a4 {[%clk 0:02:59]}  b6 {[%clk 0:02:49]} 10. O-O {[%clk 0:02:58]}  Bb7 {[%clk 0:02:49]} 11. Rad1 {[%clk 0:02:54]}  h6 {[%clk 0:02:48]} 12. Bh4 {[%clk 0:02:53]}  c5 {[%clk 0:02:45]} 13. dxc5 {[%clk 0:02:46]}  bxc5 {[%clk 0:02:42]} 14. Ne5 {[%clk 0:02:35]}  Qe8 {[%clk 0:02:18]} 15. Bg3 {[%clk 0:02:01]}  Nxe5 {[%clk 0:02:08]} 16. Bxe5 {[%clk 0:02:01]}  Qc6 {[%clk 0:02:09]} 17. f3 {[%clk 0:01:59]}  Rfd8 {[%clk 0:02:00]} 18. e4 {[%clk 0:01:57]}  Nd7 {[%clk 0:01:54]} 19. Bg3 {[%clk 0:01:55]}  Nb6 {[%clk 0:01:53]} 20. Be2 {[%clk 0:01:49]}  c4 {[%clk 0:01:52]} 21. a5 {[%clk 0:01:44]}  Qc5+ {[%clk 0:01:52]} 22. Bf2 {[%clk 0:01:43]}  Qxa5 {[%clk 0:01:50]} 23. Ra1 {[%clk 0:01:43]}  Qb4 {[%clk 0:01:50]} 24. Na4 {[%clk 0:01:36]}  Rd2 {[%clk 0:01:47]} 25. Be1 {[%clk 0:01:21]}  Rxc2 {[%clk 0:01:01]} 26. Bxb4 {[%clk 0:01:21]}  Bxb4 {[%clk 0:01:01]} 27. Bd1 {[%clk 0:01:21]}  Rd2 {[%clk 0:00:58]} 28. Nxb6 {[%clk 0:01:20]}  Bc5+ {[%clk 0:00:57]} 29. Kh1 {[%clk 0:01:20]}  Bxb6 {[%clk 0:00:57]} 30. Ba4 {[%clk 0:01:21]}  Rxb2 {[%clk 0:00:54]} 31. Rfc1 {[%clk 0:01:18]}  Rd8 {[%clk 0:00:50]} 32. Rxc4 {[%clk 0:01:17]}  Rdd2 {[%clk 0:00:51]} 0-1


[Site "https://www.chess.com"]

[Event "Titled Tuesday Blitz April 4 Early 2023"]
[White "Gokerkan, Cem Kaan"]
[Black "Escanor89"]
[WhiteFideId "6336760"]
[WhiteElo "2365"]
[BlackElo "2540"]
[Result "1-0"]
[Round "02"]
[TimeControl "180+2"]
[Date "2023.04.04"]
[WhiteClock "0:00:41"]
[BlackClock "0:00:13"]

1. e4 {[%clk 0:03:00]}  c5 {[%clk 0:02:59]} 2. c3 {[%clk 0:02:59]}  d5 {[%clk 0:02:57]} 3. exd5 {[%clk 0:02:59]}  Qxd5 {[%clk 0:02:58]} 4. d4 {[%clk 0:03:00]}  Nf6 {[%clk 0:02:58]} 5. Nf3 {[%clk 0:03:00]}  e6 {[%clk 0:02:58]} 6. Na3 {[%clk 0:02:59]}  cxd4 {[%clk 0:02:55]} 7. Nb5 {[%clk 0:02:57]}  Qd8 {[%clk 0:02:55]} 8. Bf4 {[%clk 0:02:57]}  Na6 {[%clk 0:02:53]} 9. Qa4 {[%clk 0:02:43]}  Bd7 {[%clk 0:02:46]} 10. Qxd4 {[%clk 0:02:43]}  Bc5 {[%clk 0:02:24]} 11. Nd6+ {[%clk 0:02:32]}  Ke7 {[%clk 0:02:24]} 12. Nxb7 {[%clk 0:02:14]}  Qb6 {[%clk 0:02:03]} 13. Nxc5 {[%clk 0:02:10]}  Nxc5 {[%clk 0:01:25]} 14. O-O-O {[%clk 0:02:09]}  Nce4 {[%clk 0:01:14]} 15. Be3 {[%clk 0:01:55]}  Qxd4 {[%clk 0:00:45]} 16. Rxd4 {[%clk 0:01:40]}  Rhd8 {[%clk 0:00:39]} 17. Bd3 {[%clk 0:01:39]}  Bc6 {[%clk 0:00:39]} 18. Bc2 {[%clk 0:01:31]}  Rxd4 {[%clk 0:00:36]} 19. Nxd4 {[%clk 0:01:31]}  Bd5 {[%clk 0:00:36]} 20. f3 {[%clk 0:01:30]}  Nd6 {[%clk 0:00:34]} 21. b3 {[%clk 0:01:29]}  Nd7 {[%clk 0:00:29]} 22. c4 {[%clk 0:01:29]}  Bb7 {[%clk 0:00:29]} 23. Re1 {[%clk 0:01:30]}  a6 {[%clk 0:00:27]} 24. Bf4 {[%clk 0:01:27]}  Nc5 {[%clk 0:00:25]} 25. Nf5+ {[%clk 0:01:12]}  Nxf5 {[%clk 0:00:24]} 26. Bxf5 {[%clk 0:01:13]}  Rd8 {[%clk 0:00:22]} 27. Bxh7 {[%clk 0:00:48]}  Rh8 {[%clk 0:00:19]} 28. Bc2 {[%clk 0:00:47]}  f6 {[%clk 0:00:18]} 29. h3 {[%clk 0:00:45]}  e5 {[%clk 0:00:18]} 30. Be3 {[%clk 0:00:46]}  Ne6 {[%clk 0:00:18]} 31. Kb2 {[%clk 0:00:44]}  Rd8 {[%clk 0:00:18]} 32. Rd1 {[%clk 0:00:44]}  Rc8 {[%clk 0:00:17]} 33. Kc3 {[%clk 0:00:44]}  Bc6 {[%clk 0:00:17]} 34. b4 {[%clk 0:00:44]}  g5 {[%clk 0:00:17]} 35. c5 {[%clk 0:00:41]}  f5 {[%clk 0:00:17]} 36. Bxf5 {[%clk 0:00:41]}  Rf8 {[%clk 0:00:13]} 37. Bxe6 {[%clk 0:00:41]} 1-0


[Site "https://www.chess.com"]

[Event "Titled Tuesday Blitz April 4 Early 2023"]
[White "Rodchenkov, Sergey D."]
[Black "Samunenkov, Ihor"]
[WhiteFideId "4168712"]
[BlackFideId "14187086"]
[WhiteElo "2277"]
[BlackElo "2457"]
[Result "0-1"]
[Round "02"]
[TimeControl "180+2"]
[Date "2023.04.04"]
[WhiteClock "0:00:05"]
[BlackClock "0:00:08"]

1. e4 {[%clk 0:03:00]}  c5 {[%clk 0:02:59]} 2. Nf3 {[%clk 0:03:01]}  Nc6 {[%clk 0:02:59]} 3. d4 {[%clk 0:03:01]}  cxd4 {[%clk 0:03:00]} 4. Nxd4 {[%clk 0:03:02]}  Nf6 {[%clk 0:03:00]} 5. Nc3 {[%clk 0:03:02]}  e5 {[%clk 0:03:01]} 6. Ndb5 {[%clk 0:03:03]}  d6 {[%clk 0:03:01]} 7. Nd5 {[%clk 0:03:03]}  Nxd5 {[%clk 0:03:02]} 8. exd5 {[%clk 0:03:04]}  Nb8 {[%clk 0:03:01]} 9. c4 {[%clk 0:03:03]}  Be7 {[%clk 0:02:58]} 10. Be2 {[%clk 0:03:02]}  O-O {[%clk 0:02:55]} 11. O-O {[%clk 0:03:03]}  Nd7 {[%clk 0:02:40]} 12. Nc3 {[%clk 0:02:48]}  f5 {[%clk 0:02:37]} 13. f4 {[%clk 0:02:48]}  Bf6 {[%clk 0:02:32]} 14. Kh1 {[%clk 0:02:31]}  a6 {[%clk 0:02:17]} 15. a4 {[%clk 0:02:31]}  b6 {[%clk 0:02:00]} 16. a5 {[%clk 0:02:21]}  bxa5 {[%clk 0:02:00]} 17. Qa4 {[%clk 0:02:22]}  Nc5 {[%clk 0:01:47]} 18. Qxa5 {[%clk 0:02:22]}  Nb3 {[%clk 0:01:47]} 19. Qxd8 {[%clk 0:02:20]}  Rxd8 {[%clk 0:01:47]} 20. Ra3 {[%clk 0:01:30]}  Nxc1 {[%clk 0:01:45]} 21. Rxc1 {[%clk 0:01:31]}  exf4 {[%clk 0:01:45]} 22. b4 {[%clk 0:01:32]}  Rb8 {[%clk 0:01:34]} 23. b5 {[%clk 0:01:32]}  axb5 {[%clk 0:01:32]} 24. cxb5 {[%clk 0:01:33]}  Bd7 {[%clk 0:01:31]} 25. Rb1 {[%clk 0:01:04]}  Re8 {[%clk 0:01:21]} 26. Bf1 {[%clk 0:00:55]}  Re3 {[%clk 0:01:20]} 27. Ra7 {[%clk 0:00:55]}  Be8 {[%clk 0:01:06]} 28. Na4 {[%clk 0:00:33]}  Ra3 {[%clk 0:00:31]} 29. h3 {[%clk 0:00:28]}  Be5 {[%clk 0:00:21]} 30. Ra6 {[%clk 0:00:28]}  Kf7 {[%clk 0:00:19]} 31. Nc5 {[%clk 0:00:26]}  Rxa6 {[%clk 0:00:18]} 32. Nxa6 {[%clk 0:00:26]}  Rb6 {[%clk 0:00:19]} 33. Nc7 {[%clk 0:00:26]}  Bd7 {[%clk 0:00:18]} 34. Bc4 {[%clk 0:00:20]}  Kf6 {[%clk 0:00:16]} 35. Ra1 {[%clk 0:00:19]}  Rb7 {[%clk 0:00:15]} 36. Ne6 {[%clk 0:00:19]}  Bxb5 {[%clk 0:00:15]} 37. Bf1 {[%clk 0:00:16]}  Bxf1 {[%clk 0:00:15]} 38. Rxf1 {[%clk 0:00:17]}  g5 {[%clk 0:00:16]} 39. Rc1 {[%clk 0:00:15]}  h5 {[%clk 0:00:10]} 40. h4 {[%clk 0:00:14]}  g4 {[%clk 0:00:09]} 41. Rc8 {[%clk 0:00:15]}  Rb1+ {[%clk 0:00:09]} 42. Kh2 {[%clk 0:00:15]}  f3+ {[%clk 0:00:09]} 43. g3 {[%clk 0:00:15]}  f2 {[%clk 0:00:08]} 44. Rf8+ {[%clk 0:00:05]}  Ke7 {[%clk 0:00:08]} 45. Rxf5 {[%clk 0:00:05]}  f1=Q {[%clk 0:00:09]} 46. Nf4 {[%clk 0:00:05]}  Qg1# {[%clk 0:00:08]} 0-1


[Site "https://www.chess.com"]

[Event "Titled Tuesday Blitz April 4 Early 2023"]
[White "Ahn, Hongjin"]
[Black "Wagner, Dennis"]
[WhiteFideId "13201492"]
[BlackFideId "24650684"]
[WhiteElo "2182"]
[BlackElo "2470"]
[Result "0-1"]
[Round "02"]
[TimeControl "180+2"]
[Date "2023.04.04"]
[WhiteClock "0:00:03"]
[BlackClock "0:00:19"]

1. c4 {[%clk 0:03:00]}  Nf6 {[%clk 0:02:59]} 2. Nc3 {[%clk 0:02:59]}  e5 {[%clk 0:02:59]} 3. Nf3 {[%clk 0:02:59]}  Nc6 {[%clk 0:02:59]} 4. e4 {[%clk 0:02:58]}  Bb4 {[%clk 0:02:58]} 5. d3 {[%clk 0:02:58]}  d6 {[%clk 0:02:58]} 6. a3 {[%clk 0:02:57]}  Bc5 {[%clk 0:02:57]} 7. h3 {[%clk 0:02:54]}  a5 {[%clk 0:02:56]} 8. Be2 {[%clk 0:02:52]}  h6 {[%clk 0:02:54]} 9. O-O {[%clk 0:02:52]}  O-O {[%clk 0:02:54]} 10. Nd2 {[%clk 0:02:52]}  Nd4 {[%clk 0:02:50]} 11. Nb3 {[%clk 0:02:51]}  Nxb3 {[%clk 0:02:43]} 12. Qxb3 {[%clk 0:02:52]}  Bd7 {[%clk 0:02:24]} 13. Kh1 {[%clk 0:02:44]}  a4 {[%clk 0:02:24]} 14. Qd1 {[%clk 0:02:39]}  Bd4 {[%clk 0:01:50]} 15. f4 {[%clk 0:02:36]}  exf4 {[%clk 0:01:50]} 16. Bxf4 {[%clk 0:02:37]}  Nh7 {[%clk 0:01:46]} 17. Bg4 {[%clk 0:02:31]}  Ng5 {[%clk 0:01:33]} 18. Bxd7 {[%clk 0:01:55]}  Qxd7 {[%clk 0:01:34]} 19. Bxg5 {[%clk 0:01:56]}  hxg5 {[%clk 0:01:34]} 20. Qh5 {[%clk 0:01:56]}  Ra5 {[%clk 0:01:11]} 21. Rae1 {[%clk 0:01:19]}  g6 {[%clk 0:01:09]} 22. Qe2 {[%clk 0:01:11]}  c6 {[%clk 0:01:00]} 23. Qd2 {[%clk 0:01:08]}  b6 {[%clk 0:00:51]} 24. Ne2 {[%clk 0:01:04]}  Bg7 {[%clk 0:00:47]} 25. d4 {[%clk 0:01:03]}  g4 {[%clk 0:00:46]} 26. h4 {[%clk 0:00:59]}  Qe7 {[%clk 0:00:35]} 27. g3 {[%clk 0:00:11]}  Qxe4+ {[%clk 0:00:35]} 28. Kh2 {[%clk 0:00:12]}  Rf5 {[%clk 0:00:36]} 29. Rxf5 {[%clk 0:00:07]}  Qxf5 {[%clk 0:00:37]} 30. Nf4 {[%clk 0:00:06]}  Bh6 {[%clk 0:00:34]} 31. Re7 {[%clk 0:00:06]}  Bxf4 {[%clk 0:00:24]} 32. Qxf4 {[%clk 0:00:05]}  Qc2+ {[%clk 0:00:24]} 33. Kg1 {[%clk 0:00:05]}  Qb1+ {[%clk 0:00:21]} 34. Qf1 {[%clk 0:00:01]}  Qxb2 {[%clk 0:00:20]} 35. Qf2 {[%clk 0:00:02]}  Qc1+ {[%clk 0:00:19]} 36. Kg2 {[%clk 0:00:01]}  Qxc4 {[%clk 0:00:19]} 37. h5 {[%clk 0:00:02]}  Qd5+ {[%clk 0:00:19]} 38. Kh2 {[%clk 0:00:02]}  Qxh5+ {[%clk 0:00:19]} 39. Kg1 {[%clk 0:00:03]}  Qd5 {[%clk 0:00:19]} 0-1


[Site "https://www.chess.com"]

[Event "Titled Tuesday Blitz April 4 Early 2023"]
[White "Kilic, Eray"]
[Black "Buksa, Nataliya"]
[WhiteFideId "44517173"]
[BlackFideId "14123622"]
[WhiteElo "2328"]
[BlackElo "2316"]
[Result "0-1"]
[Round "02"]
[TimeControl "180+2"]
[Date "2023.04.04"]
[WhiteClock "0:00:02"]
[BlackClock "0:00:05"]

1. d4 {[%clk 0:03:00]}  d5 {[%clk 0:02:59]} 2. Nc3 {[%clk 0:03:01]}  Nf6 {[%clk 0:02:55]} 3. Bf4 {[%clk 0:03:00]}  e6 {[%clk 0:02:54]} 4. Nb5 {[%clk 0:03:00]}  Na6 {[%clk 0:02:53]} 5. e3 {[%clk 0:03:00]}  Be7 {[%clk 0:02:53]} 6. Nc3 {[%clk 0:02:58]}  O-O {[%clk 0:02:52]} 7. Nf3 {[%clk 0:02:57]}  c5 {[%clk 0:02:51]} 8. Be2 {[%clk 0:02:56]}  Nc7 {[%clk 0:02:51]} 9. h3 {[%clk 0:02:54]}  Nce8 {[%clk 0:02:51]} 10. O-O {[%clk 0:02:54]}  b6 {[%clk 0:02:51]} 11. Ne5 {[%clk 0:02:53]}  Bb7 {[%clk 0:02:51]} 12. a4 {[%clk 0:02:52]}  Nd6 {[%clk 0:02:52]} 13. a5 {[%clk 0:02:52]}  Rb8 {[%clk 0:02:45]} 14. a6 {[%clk 0:02:50]}  Ba8 {[%clk 0:02:45]} 15. Nb5 {[%clk 0:02:48]}  Nfe4 {[%clk 0:02:38]} 16. Nxa7 {[%clk 0:02:41]}  Qe8 {[%clk 0:02:31]} 17. c4 {[%clk 0:01:49]}  f6 {[%clk 0:02:25]} 18. Nf3 {[%clk 0:01:50]}  dxc4 {[%clk 0:02:02]} 19. dxc5 {[%clk 0:01:22]}  bxc5 {[%clk 0:02:02]} 20. Qa4 {[%clk 0:01:15]}  Qxa4 {[%clk 0:01:29]} 21. Rxa4 {[%clk 0:01:15]}  e5 {[%clk 0:01:30]} 22. Bh2 {[%clk 0:01:07]}  Rxb2 {[%clk 0:01:30]} 23. Bxc4+ {[%clk 0:00:44]}  Nxc4 {[%clk 0:01:29]} 24. Rxc4 {[%clk 0:00:44]}  Ra2 {[%clk 0:01:30]} 25. Nb5 {[%clk 0:00:42]}  Bc6 {[%clk 0:01:13]} 26. Nc3 {[%clk 0:00:21]}  Nxc3 {[%clk 0:01:09]} 27. Rxc3 {[%clk 0:00:21]}  Rxa6 {[%clk 0:01:10]} 28. Rfc1 {[%clk 0:00:20]}  Rd8 {[%clk 0:01:05]} 29. Bg3 {[%clk 0:00:20]}  Bb5 {[%clk 0:00:58]} 30. Ne1 {[%clk 0:00:19]}  Ra2 {[%clk 0:00:43]} 31. Rb1 {[%clk 0:00:19]}  Ba4 {[%clk 0:00:36]} 32. Rb7 {[%clk 0:00:19]}  Bf8 {[%clk 0:00:36]} 33. f4 {[%clk 0:00:18]}  e4 {[%clk 0:00:31]} 34. Rc7 {[%clk 0:00:13]}  Rd1 {[%clk 0:00:31]} 35. Kh2 {[%clk 0:00:13]}  Re2 {[%clk 0:00:25]} 36. Rc4 {[%clk 0:00:09]}  Bb5 {[%clk 0:00:18]} 37. Rxe4 {[%clk 0:00:08]}  Rexe1 {[%clk 0:00:18]} 38. Bxe1 {[%clk 0:00:07]}  Rxe1 {[%clk 0:00:19]} 39. Re6 {[%clk 0:00:07]}  c4 {[%clk 0:00:16]} 40. Rb6 {[%clk 0:00:06]}  Rb1 {[%clk 0:00:15]} 41. Rb8 {[%clk 0:00:05]}  c3 {[%clk 0:00:14]} 42. Rxc3 {[%clk 0:00:04]}  Bd3 {[%clk 0:00:11]} 43. Rd8 {[%clk 0:00:04]}  Bf5 {[%clk 0:00:11]} 44. e4 {[%clk 0:00:03]}  Bxe4 {[%clk 0:00:05]} 45. Rcc8 {[%clk 0:00:03]}  Kf7 {[%clk 0:00:06]} 46. Rxf8+ {[%clk 0:00:03]}  Kg6 {[%clk 0:00:06]} 47. Rc7 {[%clk 0:00:04]}  Rb2 {[%clk 0:00:06]} 48. Kg1 {[%clk 0:00:03]}  Rxg2+ {[%clk 0:00:06]} 49. Kf1 {[%clk 0:00:03]}  Rg3 {[%clk 0:00:06]} 50. Rg8 {[%clk 0:00:02]}  Kf5 {[%clk 0:00:05]} 0-1


[Site "https://www.chess.com"]